[Event "46th GRE-chT Premier 2018"]
[Site "Rio Achaia"]
[Date "2018.07.11"]
[Round "3"]
[White "Papadopoulos, Panteleimon"]
[Black "Argyropoulos, Theodoros"]
[Result "1/2-1/2"]
[ECO "B27"]
[WhiteElo "1422"]
[BlackElo "1539"]
[Annotator "NA"]
[PlyCount "95"]
[EventDate "2018.07.10"]
[EventType "team-tourn"]
[EventCountry "GRE"]
[SourceTitle "playchess.com"]
[Source "ChessBase"]
[SourceQuality "1"]
[TimeControl "40/5400+30:1800+30"]

1. e4 {[%emt 0:00:00]} c5 {[%emt 0:00:00]} 2. Nf3 {[%emt 0:00:16]} g6 {[%emt 0:00:00]} 3. d4 {[%emt 0:00:52]} cxd4 {[%emt 0:00:00]} 4. Nxd4 {[%emt 0:00:39]} Nc6 {[%emt 0:00:00]} 5. Be3 {[%emt 0:02:53]} Nf6 {[%emt 0:00:46]} 6. f3 {[%emt 0:02:20]} Bg7 {[%emt 0:05:04]} 7. c4 {[%emt 0:02:52]} O-O {[%emt 0:01:11]} 8. Nc3 {[%emt 0:02:13]} d6 {[%emt 0:06:39]} 9. Qd2 {[%emt 0:06:18]} Bd7 {[%emt 0:07:15]} 10. g4 {[%emt 0:06:32]} h5 {[%emt 0:02:56]} 11. h3 {[%emt 0:06:02]} Kh7 {[%emt 0:01:14]} 12. Be2 {[%emt 0:06:36]} a5 {[%emt 0:04:37]} 13. Rd1 {[%emt 0:04:43]} Rc8 {[%emt 0:05:15]} 14. a3 {[%emt 0:08:23]} Ne5 {[%emt 0:06:14]} 15. b3 {[%emt 0:02:42]} a4 {[%emt 0:21:01]} 16. f4 {[%emt 0:03:40]} Nc6 {[%emt 0:00:55]} 17. b4 {[%emt 0:04:16]} Rh8 {[%emt 0:08:51]} 18. Ndb5 {[%emt 0:08:54]} Kg8 {[%emt 0:11:17]} 19. g5 {[%emt 0:02:09]} Nh7 {[%emt 0:09:49]} 20. Nxa4 {[%emt 0:00:47]} Ra8 {[%emt 0:00:17]} 21. Nb6 {[%emt 0:00:46]} Ra6 {[%emt 0:01:19]} 22. Nxd7 {[%emt 0:02:05]} Qxd7 {[%emt 0:00:02]} 23. c5 {[%emt 0:01:29]} Na7 {[%emt 0:01:07]} 24. Nxa7 {[%emt 0:02:36]} Rxa7 {[%emt 0:01:13]} 25. Qa2 {[%emt 0:02:07]} Ra8 {[%emt 0:02:32]} 26. Bc4 {[%emt 0:01:40]} Qc6 {[%emt 0:01:49]} 27. Bxf7+ {[%emt 0:00:27]} Kf8 {[%emt 0:00:01]} 28. Bd5 {[%emt 0:00:24]} Qa6 {[%emt 0:00:32]} 29. Bc1 {[%emt 0:01:18]} dxc5 {[%emt 0:00:20]} 30. Qc4 {[%emt 0:01:59]} Qxc4 {[%emt 0:00:43]} 31. Bxc4 {[%emt 0:00:06]} Bc3+ {[%emt 0:00:52]} 32. Bd2 {[%emt 0:01:51]} Rxa3 {[%emt 0:00:09]} 33. bxc5 {[%emt 0:00:45]} Bxd2+ {[%emt 0:01:21]} 34. Kxd2 {[%emt 0:01:24]} Ra5 {[%emt 0:00:08]} 35. Bd5 {[%emt 0:00:29]} Rxc5 {[%emt 0:00:15]} 36. Bxb7 {[%emt 0:01:09]} e5 {[%emt 0:00:05]} 37. Rhf1 {[%emt 0:01:58]} Ke7 {[%emt 0:00:03]} 38. h4 {[%emt 0:00:48]} Rd8+ {[%emt 0:01:37]} 39. Bd5 {[%emt 0:00:35]} Kd6 {[%emt 0:00:59]} 40. fxe5+ {[%emt 0:00:00]} Kxe5 {[%emt 0:00:00]} 41. Rf7 {[%emt 0:02:27]} Nf8 {[%emt 0:02:41]} 42. Rf6 {[%emt 0:01:16]} Rb8 {[%emt 0:10:25]} 43. Ke3 {[%emt 0:02:39]} Rc3+ {[%emt 0:06:51]} 44. Rd3 {[%emt 0:01:45]} Rc1 {[%emt 0:00:15]} 45. Rd2 {[%emt 0:00:48]} Rc3+ {[%emt 0:05:18]} 46. Rd3 {[%emt 0:00:33]} Rc1 {[%emt 0:00:08]} 47. Bc6 {[%emt 0:03:53]} Rc5 {[%emt 0:02:57]} 48. Bd5 {[%emt 0:02:39] Kxd5 Kd4#} 1/2-1/2

[Event "46th GRE-chT Premier 2018"]
[Site "Rio Achaia"]
[Date "2018.07.11"]
[Round "3"]
[White "Georgitsi, Sofia"]
[Black "Louka, Marianthi"]
[Result "1/2-1/2"]
[ECO "B32"]
[WhiteElo "1420"]
[BlackElo "1465"]
[Annotator "NA"]
[PlyCount "136"]
[EventDate "2018.07.10"]
[EventType "team-tourn"]
[EventCountry "GRE"]
[SourceTitle "playchess.com"]
[Source "ChessBase"]
[SourceQuality "1"]
[TimeControl "40/5400+30:1800+30"]

1. e4 {[%emt 0:00:58]} c5 {[%emt 0:00:00]} 2. Nf3 {[%emt 0:00:42]} Nc6 {[%emt 0:00:00]} 3. d4 {[%emt 0:00:20]} cxd4 {[%emt 0:00:00]} 4. Nxd4 {[%emt 0:00:06]} e5 {[%emt 0:00:00]} 5. Nb5 {[%emt 0:05:07]} d6 {[%emt 0:00:04]} 6. c4 {[%emt 0:01:47]} Be7 {[%emt 0:00:14]} 7. N1c3 {[%emt 0:01:24]} a6 {[%emt 0:00:18]} 8. Na3 {[%emt 0:00:08]} f5 {[%emt 0:00:37]} 9. exf5 {[%emt 0:08:34]} Bxf5 {[%emt 0:00:09]} 10. Bd3 {[%emt 0:02:24]} Bxd3 {[%emt 0:00:10]} 11. Qxd3 {[%emt 0:00:08]} Nf6 {[%emt 0:00:05]} 12. O-O {[%emt 0:01:28]} O-O {[%emt 0:00:07]} 13. Nc2 {[%emt 0:07:31]} Kh8 {[%emt 0:19:18]} 14. Bg5 {[%emt 0:07:42]} Nh5 {[%emt 0:05:18]} 15. Be3 {[%emt 0:06:31]} Nf4 {[%emt 0:01:21]} 16. Bxf4 {[%emt 0:00:35]} exf4 {[%emt 0:00:51]} 17. Nd5 {[%emt 0:11:11]} Ne5 {[%emt 0:00:18]} 18. Qe4 {[%emt 0:04:16]} f3 {[%emt 0:01:03]} 19. g3 {[%emt 0:01:52]} Qd7 {[%emt 0:00:21]} 20. Nxe7 {[%emt 0:03:25]} Qxe7 {[%emt 0:01:27]} 21. Ne3 {[%emt 0:02:50]} Rae8 {[%emt 0:04:16]} 22. Rad1 {[%emt 0:03:48]} Qd7 {[%emt 0:01:57]} 23. c5 {[%emt 0:09:12]} Ng6 {[%emt 0:05:29]} 24. Rxd6 {[%emt 0:05:03]} Qxd6 {[%emt 0:03:40]} 25. Qxe8 {[%emt 0:00:12]} Qxc5 {[%emt 0:00:23]} 26. Qe4 {[%emt 0:01:58]} Qb5 {[%emt 0:02:32]} 27. b3 {[%emt 0:01:10]} Re8 {[%emt 0:06:01]} 28. Qxf3 {[%emt 0:00:45]} Rf8 {[%emt 0:02:47]} 29. Qd5 {[%emt 0:03:55]} Qe2 {[%emt 0:01:52]} 30. Qxb7 {[%emt 0:02:53]} Qxa2 {[%emt 0:03:45]} 31. Qd5 {[%emt 0:02:55]} a5 {[%emt 0:12:36]} 32. Kg2 {[%emt 0:01:50]} a4 {[%emt 0:05:15]} 33. bxa4 {[%emt 0:00:15]} Qxa4 {[%emt 0:00:07]} 34. Qc4 {[%emt 0:01:56]} Qa5 {[%emt 0:02:38]} 35. Rc1 {[%emt 0:01:25]} Qd2 {[%emt 0:01:07]} 36. Rf1 {[%emt 0:00:19]} Qa5 {[%emt 0:01:57]} 37. Qd5 {[%emt 0:00:25]} Qa4 {[%emt 0:01:31]} 38. Qc4 {[%emt 0:00:46]} Qa5 {[%emt 0:00:35]} 39. Qd4 {[%emt 0:00:41]} Qg5 {[%emt 0:00:59]} 40. Qg4 {[%emt 0:00:00]} Qf6 {[%emt 0:00:00]} 41. Qe4 {[%emt 0:12:20]} Qb2 {[%emt 0:14:11]} 42. Qc2 {[%emt 0:01:11]} Qb7+ {[%emt 0:00:26]} 43. f3 {[%emt 0:04:00]} Ne5 {[%emt 0:02:10]} 44. Qe4 {[%emt 0:01:38]} Qb5 {[%emt 0:09:22]} 45. Ng4 {[%emt 0:05:59]} Nd3 {[%emt 0:07:03]} 46. Nf2 {[%emt 0:00:24]} Nc5 {[%emt 0:00:59]} 47. Qd5 {[%emt 0:01:26]} Qb6 {[%emt 0:02:19]} 48. Ne4 {[%emt 0:01:37]} Ne6 {[%emt 0:01:37]} 49. Qd6 {[%emt 0:01:07]} Qb3 {[%emt 0:04:41]} 50. Nc5 {[%emt 0:02:15]} Qc2+ {[%emt 0:01:31]} 51. Rf2 {[%emt 0:00:08]} Qxc5 {[%emt 0:00:20]} 52. Qxe6 {[%emt 0:00:08]} h6 {[%emt 0:00:27]} 53. Qe4 {[%emt 0:00:31]} Qg5 {[%emt 0:03:33]} 54. Re2 {[%emt 0:00:51]} h5 {[%emt 0:00:44]} 55. Qe5 {[%emt 0:01:13]} Qg6 {[%emt 0:00:54]} 56. Qe4 {[%emt 0:00:27]} Qf6 {[%emt 0:00:23]} 57. Rf2 {[%emt 0:01:28]} Qg5 {[%emt 0:00:21]} 58. Re2 {[%emt 0:00:17]} Qf6 {[%emt 0:01:08]} 59. Rf2 {[%emt 0:00:52]} Qf7 {[%emt 0:03:39]} 60. Qh4 {[%emt 0:00:47]} Kg8 {[%emt 0:01:42]} 61. Qe4 {[%emt 0:01:17]} Re8 {[%emt 0:01:04]} 62. Qd4 {[%emt 0:00:23]} Kh8 {[%emt 0:00:41]} 63. Qc5 {[%emt 0:00:38]} Qg6 {[%emt 0:00:26]} 64. Qd4 {[%emt 0:00:36]} Re6 {[%emt 0:00:33]} 65. Qd8+ {[%emt 0:01:03]} Re8 {[%emt 0:00:10]} 66. Qd4 {[%emt 0:00:07]} Re6 {[%emt 0:00:12]} 67. Qd8+ {[%emt 0:00:05]} Kh7 {[%emt 0:00:12]} 68. Qd4 {[%emt 0:00:08]} Rf6 1/2-1/2

[Event "46th GRE-chT Premier 2018"]
[Site "Rio Achaia"]
[Date "2018.07.11"]
[Round "3"]
[White "Kartsidima, Aikaterini"]
[Black "Poulopoulos, Ilias"]
[Result "1-0"]
[ECO "A45"]
[WhiteElo "1402"]
[BlackElo "1290"]
[Annotator "NA"]
[PlyCount "73"]
[EventDate "2018.07.10"]
[EventType "team-tourn"]
[EventCountry "GRE"]
[SourceTitle "playchess.com"]
[Source "ChessBase"]
[SourceQuality "1"]
[TimeControl "40/5400+30:1800+30"]

1. d4 {[%emt 0:00:00]} Nf6 {[%emt 0:00:00]} 2. Nd2 {[%emt 0:00:45]} e6 {[%emt 0:00:39]} 3. Ngf3 {[%emt 0:00:51]} c5 {[%emt 0:02:34]} 4. e3 {[%emt 0:00:43]} Be7 {[%emt 0:01:10]} 5. Bd3 {[%emt 0:01:06]} O-O {[%emt 0:01:59]} 6. O-O {[%emt 0:01:51]} b6 {[%emt 0:02:07]} 7. c3 {[%emt 0:02:37]} Bb7 {[%emt 0:02:24]} 8. e4 {[%emt 0:06:46]} d6 {[%emt 0:04:16]} 9. b3 {[%emt 0:04:14]} Nbd7 {[%emt 0:03:16]} 10. Bb2 {[%emt 0:02:53]} Qc7 {[%emt 0:05:41]} 11. Rc1 {[%emt 0:05:45]} Rfe8 {[%emt 0:01:54]} 12. Re1 {[%emt 0:02:54]} Bf8 {[%emt 0:03:27]} 13. Nf1 {[%emt 0:16:49]} a6 {[%emt 0:05:13]} 14. a4 {[%emt 0:03:56]} g6 {[%emt 0:07:31]} 15. Ng3 {[%emt 0:06:29]} Bg7 {[%emt 0:03:08]} 16. Qe2 {[%emt 0:04:05]} Bh6 {[%emt 0:11:16]} 17. Rc2 {[%emt 0:02:49]} Bg7 {[%emt 0:04:21]} 18. Bc1 {[%emt 0:14:05]} e5 {[%emt 0:05:06]} 19. dxe5 {[%emt 0:03:25]} Nxe5 {[%emt 0:04:38]} 20. Nxe5 {[%emt 0:00:09]} dxe5 {[%emt 0:00:07]} 21. f3 {[%emt 0:01:31]} a5 {[%emt 0:02:23]} 22. Bb5 {[%emt 0:00:56]} Bc6 {[%emt 0:00:57]} 23. Be3 {[%emt 0:00:32]} Red8 {[%emt 0:02:19]} 24. Rcc1 {[%emt 0:00:54]} Rd6 {[%emt 0:02:08]} 25. Red1 {[%emt 0:01:13]} Rad8 {[%emt 0:01:41]} 26. Bxc6 {[%emt 0:01:09]} Qxc6 {[%emt 0:00:52]} 27. Nf1 {[%emt 0:02:23]} Ne8 {[%emt 0:02:36]} 28. Rxd6 {[%emt 0:00:59]} Rxd6 {[%emt 0:01:16]} 29. Nd2 {[%emt 0:01:02]} Nc7 {[%emt 0:00:37]} 30. Nc4 {[%emt 0:00:29]} Rd7 {[%emt 0:00:24]} 31. Rd1 {[%emt 0:00:34]} Rxd1+ {[%emt 0:02:14]} 32. Qxd1 {[%emt 0:00:05]} Bf6 {[%emt 0:01:16]} 33. Qd6 {[%emt 0:00:47]} Qxd6 {[%emt 0:00:29]} 34. Nxd6 {[%emt 0:00:03]} Kf8 {[%emt 0:02:17]} 35. Nc8 {[%emt 0:00:22]} Na8 {[%emt 0:00:28]} 36. Nxb6 {[%emt 0:00:19]} Nxb6 {[%emt 0:01:01]} 37. Bxc5+ 1-0

[Event "46th GRE-chT Premier 2018"]
[Site "Rio Achaia"]
[Date "2018.07.11"]
[Round "3"]
[White "Trapalis, Theodoros"]
[Black "Vlachos, Georgios"]
[Result "1-0"]
[ECO "D30"]
[WhiteElo "1386"]
[BlackElo "1334"]
[Annotator "NA"]
[PlyCount "81"]
[EventDate "2018.07.10"]
[EventType "team-tourn"]
[EventCountry "GRE"]
[SourceTitle "playchess.com"]
[Source "ChessBase"]
[SourceQuality "1"]
[TimeControl "40/5400+30:1800+30"]

1. d4 {[%emt 0:00:00]} d5 {[%emt 0:00:00]} 2. c4 {[%emt 0:00:00]} e6 {[%emt 0:00:04]} 3. Nf3 {[%emt 0:00:09]} Nf6 {[%emt 0:00:15]} 4. e3 {[%emt 0:00:27]} Be7 {[%emt 0:00:27]} 5. Nc3 {[%emt 0:00:27]} O-O {[%emt 0:00:22]} 6. Bd3 {[%emt 0:01:37]} b6 {[%emt 0:01:55]} 7. O-O {[%emt 0:02:02]} Bb7 {[%emt 0:00:57]} 8. b3 {[%emt 0:03:51]} Nbd7 {[%emt 0:01:20]} 9. Bb2 {[%emt 0:01:24]} c5 {[%emt 0:01:03]} 10. cxd5 {[%emt 0:02:07]} Nxd5 {[%emt 0:03:26]} 11. Nxd5 {[%emt 0:01:31]} Bxd5 {[%emt 0:00:48]} 12. Rc1 {[%emt 0:03:46]} Rc8 {[%emt 0:04:50]} 13. Qe2 {[%emt 0:02:05]} Re8 {[%emt 0:08:01]} 14. Rfd1 {[%emt 0:04:14]} cxd4 {[%emt 0:07:13]} 15. Nxd4 {[%emt 0:04:33]} Nc5 {[%emt 0:05:51]} 16. Bb5 {[%emt 0:07:38]} Rf8 {[%emt 0:01:11]} 17. Nc6 {[%emt 0:02:21]} Qc7 {[%emt 0:08:11]} 18. Qg4 {[%emt 0:04:05]} f6 {[%emt 0:04:24]} 19. Nxe7+ {[%emt 0:22:27]} Qxe7 {[%emt 0:02:14]} 20. b4 {[%emt 0:07:10]} Ne4 {[%emt 0:04:22]} 21. Rxc8 {[%emt 0:01:16]} Rxc8 {[%emt 0:00:26]} 22. Rxd5 {[%emt 0:00:17]} Nxf2 {[%emt 0:11:03]} 23. Rd7 {[%emt 0:09:21]} Nxg4 {[%emt 0:02:58]} 24. Rxe7 {[%emt 0:00:02]} Kf8 {[%emt 0:00:51]} 25. Rxe6 {[%emt 0:01:30]} Rc2 {[%emt 0:00:39]} 26. Bd4 {[%emt 0:03:14]} Kf7 {[%emt 0:01:14]} 27. Re4 {[%emt 0:01:18]} f5 {[%emt 0:01:17]} 28. Rf4 {[%emt 0:01:55]} Ke6 {[%emt 0:01:50]} 29. Rxf5 {[%emt 0:03:35]} Rxa2 {[%emt 0:06:26]} 30. Bc4+ {[%emt 0:00:36]} Kxf5 {[%emt 0:00:18]} 31. Bxa2 {[%emt 0:00:10]} g6 {[%emt 0:00:51]} 32. b5 {[%emt 0:01:07]} Ke4 {[%emt 0:00:51]} 33. Bb1+ {[%emt 0:00:21]} Kd5 {[%emt 0:00:53]} 34. Bd3 {[%emt 0:00:31]} g5 {[%emt 0:02:39]} 35. h3 {[%emt 0:02:26]} Nh6 {[%emt 0:01:05]} 36. Bg7 {[%emt 0:01:47]} Nf7 {[%emt 0:00:23]} 37. Bxh7 {[%emt 0:00:28]} Kc5 {[%emt 0:00:37]} 38. Bg6 {[%emt 0:01:23]} Nd8 {[%emt 0:01:08]} 39. Bf6 {[%emt 0:00:55]} Nb7 {[%emt 0:00:42]} 40. Bd3 {[%emt 0:00:00]} Nd6 {[%emt 0:00:00]} 41. Be7 {[%emt 0:00:54]} 1-0

[Event "46th GRE-chT Premier 2018"]
[Site "Rio Achaia"]
[Date "2018.07.11"]
[Round "3"]
[White "Gkaripis, Marios Ilias"]
[Black "Georgiadis, Anastasios"]
[Result "0-1"]
[ECO "E51"]
[WhiteElo "1374"]
[BlackElo "1184"]
[Annotator "NA"]
[PlyCount "165"]
[EventDate "2018.07.10"]
[EventType "team-tourn"]
[EventCountry "GRE"]
[SourceTitle "playchess.com"]
[Source "ChessBase"]
[SourceQuality "1"]
[TimeControl "40/5400+30:1800+30"]

1. d4 {[%emt 0:00:00]} Nf6 {[%emt 0:03:56]} 2. c4 {[%emt 0:00:00]} e6 {[%emt 0:00:07]} 3. Nc3 {[%emt 0:00:00]} Bb4 {[%emt 0:00:46]} 4. e3 {[%emt 0:00:08]} O-O {[%emt 0:01:06]} 5. Nf3 {[%emt 0:00:12]} d5 {[%emt 0:01:50]} 6. a3 {[%emt 0:00:20]} Bxc3+ {[%emt 0:01:03]} 7. bxc3 {[%emt 0:00:06]} Nbd7 {[%emt 0:03:16]} 8. cxd5 {[%emt 0:00:48]} exd5 {[%emt 0:01:15]} 9. c4 {[%emt 0:00:25]} c6 {[%emt 0:01:48]} 10. Bd3 {[%emt 0:00:41]} Ne4 {[%emt 0:03:28]} 11. cxd5 {[%emt 0:03:12]} cxd5 {[%emt 0:01:04]} 12. O-O {[%emt 0:00:46]} Ndf6 {[%emt 0:00:28]} 13. Qb3 {[%emt 0:04:47]} Rb8 {[%emt 0:09:32]} 14. h3 {[%emt 0:01:08]} Be6 {[%emt 0:01:16]} 15. a4 {[%emt 0:05:22]} a6 {[%emt 0:05:39]} 16. Ba3 {[%emt 0:02:43]} Re8 {[%emt 0:00:35]} 17. a5 {[%emt 0:07:44]} h6 {[%emt 0:07:20]} 18. Rfc1 {[%emt 0:05:54]} Bf5 {[%emt 0:06:12]} 19. Ne5 {[%emt 0:11:29]} Nd7 {[%emt 0:07:34]} 20. Bxe4 {[%emt 0:15:38]} Bxe4 {[%emt 0:00:46]} 21. Bd6 {[%emt 0:04:04]} Qg5 {[%emt 0:04:55]} 22. f3 {[%emt 0:03:01]} Nxe5 {[%emt 0:00:42]} 23. fxe4 {[%emt 0:05:51]} Nf3+ {[%emt 0:01:43]} 24. Kh1 {[%emt 0:03:24]} Nd2 {[%emt 0:00:37]} 25. Qc2 {[%emt 0:07:24]} Nxe4 {[%emt 0:05:39]} 26. Bxb8 {[%emt 0:02:31]} Rxb8 {[%emt 0:01:42]} 27. Re1 {[%emt 0:05:15]} Qg3 {[%emt 0:01:39]} 28. Re2 {[%emt 0:02:51]} Re8 {[%emt 0:00:45]} 29. Rf1 {[%emt 0:03:07]} Qg5 {[%emt 0:00:50]} 30. Kg1 {[%emt 0:04:32]} Ng3 {[%emt 0:00:09]} 31. Rf3 {[%emt 0:01:23]} Nxe2+ {[%emt 0:00:11]} 32. Qxe2 {[%emt 0:00:06]} Rc8 {[%emt 0:00:15]} 33. Kh2 {[%emt 0:00:47]} Qe7 {[%emt 0:00:16]} 34. Rg3 {[%emt 0:00:43]} Qc7 {[%emt 0:00:20]} 35. Qg4 {[%emt 0:00:16]} g6 {[%emt 0:00:19]} 36. h4 {[%emt 0:00:40]} Re8 {[%emt 0:00:25]} 37. Kh3 {[%emt 0:00:33]} Qe7 {[%emt 0:00:08]} 38. h5 {[%emt 0:00:25]} g5 {[%emt 0:00:17]} 39. Qf5 {[%emt 0:00:18]} Qe6 {[%emt 0:00:21]} 40. Kg4 {[%emt 0:00:00]} Qxf5+ {[%emt 0:00:00]} 41. Kxf5 {[%emt 0:01:53]} Re4 {[%emt 0:02:05]} 42. Rf3 {[%emt 0:04:31]} Kg7 {[%emt 0:00:35]} 43. g4 {[%emt 0:01:16]} f6 {[%emt 0:00:26]} 44. Rg3 {[%emt 0:00:28]} Kf7 {[%emt 0:00:14]} 45. Rf3 {[%emt 0:00:14]} Re7 {[%emt 0:00:17]} 46. Rg3 {[%emt 0:00:28]} Rc7 {[%emt 0:00:11]} 47. e4 {[%emt 0:00:59]} Rc4 {[%emt 0:00:42]} 48. Rd3 {[%emt 0:02:18]} dxe4 {[%emt 0:00:36]} 49. Kxe4 {[%emt 0:00:12]} Ra4 {[%emt 0:00:50]} 50. Rb3 {[%emt 0:00:37]} Rxa5 {[%emt 0:02:02]} 51. Rxb7+ {[%emt 0:00:08]} Ke6 {[%emt 0:00:27]} 52. Rh7 {[%emt 0:02:04]} Ra2 {[%emt 0:00:33]} 53. Rxh6 {[%emt 0:01:31]} Rf2 {[%emt 0:00:29]} 54. Rg6 {[%emt 0:07:13]} Rf4+ {[%emt 0:00:48]} 55. Ke3 {[%emt 0:00:22]} Rxg4 {[%emt 0:00:15]} 56. d5+ {[%emt 0:00:48]} Ke5 {[%emt 0:01:05]} 57. d6 {[%emt 0:01:34]} Re4+ {[%emt 0:00:10]} 58. Kf3 {[%emt 0:02:24]} Rf4+ {[%emt 0:00:12]} 59. Ke3 {[%emt 0:01:12]} Kxd6 {[%emt 0:00:54]} 60. h6 {[%emt 0:00:14]} Ke5 {[%emt 0:00:17]} 61. Rg8 {[%emt 0:02:10]} Rh4 {[%emt 0:01:21]} 62. Rh8 {[%emt 0:00:58]} Kf5 {[%emt 0:00:26]} 63. Ra8 Rxh6 {[%emt 0:00:58]} 64. Rxa6 {[%emt 0:01:13]} Rh3+ {[%emt 0:00:23]} 65. Kf2 {[%emt 0:00:27]} g4 {[%emt 0:00:44]} 66. Ra5+ {[%emt 0:00:29]} Kg6 {[%emt 0:00:10]} 67. Kg2 {[%emt 0:00:49]} f5 {[%emt 0:00:37]} 68. Ra8 {[%emt 0:01:02]} Rd3 {[%emt 0:00:59]} 69. Rg8+ {[%emt 0:00:23]} Kf6 {[%emt 0:00:14]} 70. Rf8+ {[%emt 0:00:12]} Ke5 {[%emt 0:00:07]} 71. Ra8 {[%emt 0:00:31]} Ke4 {[%emt 0:00:48]} 72. Re8+ {[%emt 0:00:32]} Kf4 {[%emt 0:00:15]} 73. Re1 {[%emt 0:00:20]} Rd2+ {[%emt 0:00:49]} 74. Kg1 {[%emt 0:00:27]} Kf3 {[%emt 0:00:25]} 75. Rf1+ {[%emt 0:00:36]} Kg3 {[%emt 0:00:42]} 76. Kh1 {[%emt 0:01:16]} Kh3 77. Kg1 g3 {[%emt 0:02:07]} 78. Re1 {[%emt 0:01:47]} f4 {[%emt 0:00:43]} 79. Rf1 {[%emt 0:00:40]} f3 {[%emt 0:00:24]} 80. Rxf3 {[%emt 0:00:32]} Rd1+ {[%emt 0:00:11]} 81. Rf1 {[%emt 0:00:08]} Rxf1+ {[%emt 0:00:08]} 82. Kxf1 {[%emt 0:00:04]} Kh2 {[%emt 0:00:05]} 83. Ke2 {[%emt 0:00:09]} 0-1

[Event "46th GRE-chT Premier 2018"]
[Site "Rio Achaia"]
[Date "2018.07.11"]
[Round "3"]
[White "Patriki, Alexandra"]
[Black "Skiadopoulou, Afroditi-Lelouda"]
[Result "0-1"]
[ECO "C68"]
[WhiteElo "1355"]
[BlackElo "1491"]
[Annotator "NA"]
[PlyCount "128"]
[EventDate "2018.07.10"]
[EventType "team-tourn"]
[EventCountry "GRE"]
[SourceTitle "playchess.com"]
[Source "ChessBase"]
[SourceQuality "1"]
[TimeControl "40/5400+30:1800+30"]

1. e4 {[%emt 0:00:00]} e5 {[%emt 0:00:00]} 2. Nf3 {[%emt 0:00:00]} Nc6 {[%emt 0:00:00]} 3. Bb5 {[%emt 0:00:00]} a6 {[%emt 0:00:00]} 4. Bxc6 {[%emt 0:00:00]} dxc6 {[%emt 0:00:56]} 5. d4 {[%emt 0:00:16]} exd4 {[%emt 0:00:38]} 6. Qxd4 {[%emt 0:00:21]} Qxd4 {[%emt 0:02:37]} 7. Nxd4 {[%emt 0:00:13]} Nf6 {[%emt 0:03:57]} 8. Nc3 {[%emt 0:01:44]} Bb4 {[%emt 0:04:11]} 9. f3 {[%emt 0:05:04]} O-O {[%emt 0:02:36]} 10. Bd2 {[%emt 0:03:20]} Rd8 {[%emt 0:08:06]} 11. Nde2 {[%emt 0:01:02]} b5 {[%emt 0:10:45]} 12. O-O-O {[%emt 0:02:16]} Bb7 {[%emt 0:03:08]} 13. Bf4 {[%emt 0:12:32]} Ba5 {[%emt 0:00:52]} 14. Rxd8+ {[%emt 0:09:56]} Rxd8 {[%emt 0:00:07]} 15. Rd1 {[%emt 0:03:49]} Rxd1+ {[%emt 0:01:01]} 16. Nxd1 {[%emt 0:00:10]} Kf8 {[%emt 0:00:07]} 17. c3 {[%emt 0:03:06]} Ke7 {[%emt 0:01:57]} 18. Ng3 {[%emt 0:01:41]} g6 {[%emt 0:00:58]} 19. Bg5 {[%emt 0:01:03]} Ke6 {[%emt 0:01:15]} 20. Nf2 {[%emt 0:07:49]} Nd7 {[%emt 0:02:38]} 21. Ne2 {[%emt 0:05:02]} f6 {[%emt 0:03:47]} 22. Be3 {[%emt 0:04:49]} Bb6 {[%emt 0:09:29]} 23. Kd2 {[%emt 0:01:37]} Ne5 {[%emt 0:03:00]} 24. b3 {[%emt 0:03:27]} c5 {[%emt 0:03:41]} 25. f4 {[%emt 0:06:40]} Nd7 {[%emt 0:01:35]} 26. g3 {[%emt 0:01:13]} Nb8 {[%emt 0:13:30]} 27. Nc1 {[%emt 0:10:25]} Nd7 {[%emt 0:04:04]} 28. Ne2 {[%emt 0:05:38]} c4 {[%emt 0:10:59]} 29. bxc4 {[%emt 0:04:19]} bxc4 {[%emt 0:00:13]} 30. Bxb6 {[%emt 0:03:53]} cxb6 {[%emt 0:00:14]} 31. Ke3 {[%emt 0:01:05]} b5 {[%emt 0:00:27]} 32. Kd4 {[%emt 0:00:38]} Kd6 {[%emt 0:01:23]} 33. e5+ {[%emt 0:01:20]} fxe5+ {[%emt 0:01:11]} 34. fxe5+ {[%emt 0:00:14]} Nxe5 {[%emt 0:01:07]} 35. Ne4+ {[%emt 0:00:41]} Bxe4 {[%emt 0:00:29]} 36. Kxe4 {[%emt 0:00:10]} Nd3 {[%emt 0:01:28]} 37. Kd4 {[%emt 0:00:55]} a5 {[%emt 0:01:49]} 38. h3 {[%emt 0:01:16]} Nf2 {[%emt 0:03:01]} 39. h4 {[%emt 0:00:32]} Nd3 {[%emt 0:00:18]} 40. a4 {[%emt 0:00:00]} Kc6 {[%emt 0:00:00]} 41. Ke3 {[%emt 0:30:08]} bxa4 {[%emt 0:03:33]} 42. Nd4+ {[%emt 0:00:12]} Kd5 {[%emt 0:04:47]} 43. Nc2 {[%emt 0:00:39]} Nb2 {[%emt 0:03:11]} 44. Na3 {[%emt 0:01:07]} Ke5 {[%emt 0:00:35]} 45. Kd2 {[%emt 0:01:17]} Kd5 {[%emt 0:00:45]} 46. Ke3 {[%emt 0:00:13]} Nd3 {[%emt 0:01:13]} 47. Kf3 {[%emt 0:00:46]} h6 {[%emt 0:01:37]} 48. Ke3 {[%emt 0:00:35]} g5 {[%emt 0:00:20]} 49. hxg5 {[%emt 0:00:32]} hxg5 {[%emt 0:00:32]} 50. Kf3 {[%emt 0:00:13]} Nc5 {[%emt 0:02:00]} 51. Nb1 {[%emt 0:00:57]} Ne4 {[%emt 0:01:21]} 52. g4 {[%emt 0:00:28]} Nc5 {[%emt 0:00:42]} 53. Na3 {[%emt 0:00:21]} Nd3 {[%emt 0:00:18]} 54. Ke3 {[%emt 0:00:38]} Ne5 {[%emt 0:00:25]} 55. Kf2 Ke4 {[%emt 0:00:39]} 56. Ke2 {[%emt 0:00:49]} Kf4 {[%emt 0:01:00]} 57. Kf2 {[%emt 0:00:31]} Nxg4+ {[%emt 0:00:18]} 58. Kg2 {[%emt 0:00:14]} Ne5 {[%emt 0:00:14]} 59. Kf2 {[%emt 0:00:07]} g4 {[%emt 0:00:36]} 60. Nc2 {[%emt 0:00:41]} g3+ {[%emt 0:00:58]} 61. Kg1 {[%emt 0:00:23]} Kf3 {[%emt 0:01:30]} 62. Kf1 {[%emt 0:00:41]} g2+ {[%emt 0:00:50]} 63. Kg1 {[%emt 0:00:08]} Kg3 {[%emt 0:00:11]} 64. Na3 {[%emt 0:00:33]} Nf3# {[%emt 0:00:13]} 0-1